bitfinex/quotes_BTCUSD_20250730
["timestamp","ask_amount","ask_price","bid_price","bid_amount"]
[1753879663827,0.04551793,117790.0,117780.0,0.68547583]
[1753879664094,0.22380131,117790.0,117780.0,0.6801058]
[1753879664348,0.22380131,117790.0,117780.0,0.74329591]
[1753879664349,0.05198689,117790.0,117780.0,0.74329591]
[1753879664626,0.03500818,117790.0,117780.0,0.75178581]
[1753879664828,0.04349728,117790.0,117780.0,0.75178581]
[1753879665048,0.0519866,117790.0,117780.0,0.74329569]
[1753879665255,0.06047606,117790.0,117780.0,0.74329569]
[1753879665472,0.06047606,117790.0,117780.0,0.74329583]
[1753879665686,0.06896574,117790.0,117780.0,0.74329583]
[1753879666174,0.06896567,117790.0,117780.0,0.75178587]
[1753879666810,0.06896567,117790.0,117780.0,0.74329583]
[1753879667023,0.03500803,117790.0,117780.0,0.7602757]
[1753879667273,0.04349721,117790.0,117780.0,0.7602757]
[1753879667503,0.026519,117790.0,117780.0,0.7602757]
[1753879667733,0.01797821,117790.0,117780.0,0.7602757]
[1753879667858,0.02646746,117790.0,117780.0,0.7602757]
[1753879668312,0.01797821,117790.0,117780.0,0.7602757]
[1753879668573,0.00948903,117790.0,117780.0,0.7602757]
[1753879668791,0.001,117790.0,117780.0,0.7602757]
[1753879671202,0.001,117790.0,117780.0,0.844753]
[1753879671906,0.1844177,117810.0,117800.0,0.19524559]
[1753879672117,0.05105993,117810.0,117800.0,0.64251555]
[1753879672326,0.0595481,117810.0,117800.0,0.66989695]
[1753879672578,0.0595481,117810.0,117800.0,0.68687436]
[1753879672792,0.0595481,117810.0,117800.0,0.67838569]
[1753879673023,0.03408403,117810.0,117800.0,0.68687422]
[1753879673235,0.03408403,117810.0,117800.0,0.72396267]
[1753879673440,0.03508403,117810.0,117800.0,0.75126267]
[1753879673935,0.03508389,117810.0,117800.0,0.75126267]
[1753879674094,0.01056989,117810.0,117800.0,0.75126267]
[1753879674325,0.01905762,117810.0,117800.0,0.75126267]
[1753879674559,0.02754557,117810.0,117800.0,0.75126267]
[1753879674778,0.02754557,117810.0,117800.0,0.73428569]
[1753879675002,0.02754557,117810.0,117800.0,0.75126267]
[1753879675652,0.02754557,117810.0,117800.0,0.74277422]
[1753879676309,0.01905762,117810.0,117800.0,0.75126267]
[1753879676535,0.01905762,117810.0,117800.0,0.75147851]
[1753879676778,0.20579861,117810.0,117800.0,0.38567283]
[1753879677000,0.04452198,117810.0,117800.0,0.67860146]
[1753879677220,0.04452198,117810.0,117800.0,0.67860153]
[1753879677440,0.04452198,117810.0,117800.0,0.6870902]
[1753879677875,0.03603374,117810.0,117800.0,0.6870902]
[1753879678098,0.03603366,117810.0,117800.0,0.6955788]
[1753879678318,0.03603366,117810.0,117800.0,0.6870902]
[1753879679399,0.04452183,117810.0,117800.0,0.6870902]
[1753879679599,0.04452183,117810.0,117800.0,0.67860153]
[1753879679814,0.19934138,117810.0,117800.0,0.6616239]
[1753879680069,0.19934138,117810.0,117800.0,0.65313508]
[1753879680293,0.19085343,117810.0,117800.0,0.4780658]
[1753879680520,0.18236534,117810.0,117800.0,0.03296584]
[1753879680738,0.24148534,117810.0,117800.0,0.13357584]
[1753879681212,0.24148534,117810.0,117800.0,0.00021584]
[1753879681688,0.34868166,117810.0,117800.0,0.00021584]
[1753879681904,0.66042162,117810.0,117800.0,0.00021584]
[1753879683985,0.47371166,117810.0,117800.0,0.03497584]
[1753879684409,0.47673166,117810.0,117800.0,0.00021584]
[1753879685123,0.48200166,117810.0,117800.0,0.00021584]
[1753879685352,0.79374162,117810.0,117800.0,0.00021584]
[1753879686259,0.48200166,117810.0,117800.0,0.00021584]
[1753879686521,0.47673166,117810.0,117800.0,0.00021584]
[1753879686772,0.48200166,117810.0,117800.0,0.00021584]
[1753879687005,0.79374162,117810.0,117800.0,0.00021584]
[1753879687473,0.82357884,117810.0,117800.0,0.00021584]
[1753879688168,0.51183888,117810.0,117800.0,0.00021584]
[1753879688383,0.82357884,117810.0,117800.0,0.00021584]
[1753879688827,0.84909984,117810.0,117800.0,0.00021584]
[1753879691801,1.18909984,117810.0,117800.0,0.00021584]
[1753879692706,1.18909615,117810.0,117800.0,0.00021584]
[1753879693855,1.18908764,117810.0,117800.0,0.00021584]
[1753879696580,1.1811313,117810.0,117800.0,0.00021584]
[1753879696797,1.18908192,117810.0,117800.0,0.00021584]
[1753879699465,1.18369192,117810.0,117800.0,0.00021584]
[1753879699681,0.87195196,117810.0,117800.0,0.03497584]
[1753879699902,1.18369192,117810.0,117800.0,0.03497584]
[1753879701244,1.18369192,117810.0,117800.0,0.00021584]
[1753879702160,1.23544892,117810.0,117800.0,0.00021584]
[1753879702612,1.23998892,117810.0,117800.0,0.00021584]
[1753879702850,1.66069748,117810.0,117800.0,0.00021584]
[1753879703130,1.61633973,117810.0,117800.0,0.00021584]
[1753879703314,1.30459977,117810.0,117800.0,0.00021584]
[1753879703563,1.30359977,117810.0,117800.0,0.00021584]
[1753879704056,1.30659977,117810.0,117800.0,0.00021584]
[1753879704506,1.30559977,117810.0,117800.0,0.00021584]
[1753879704986,1.30859977,117810.0,117800.0,0.00021584]
[1753879705466,1.308587,117810.0,117800.0,0.00021584]
[1753879706469,1.32691108,117810.0,117800.0,0.00021584]
[1753879708043,1.28881252,117810.0,117800.0,0.00021584]
[1753879709129,1.27291128,117810.0,117800.0,0.00021584]
[1753879709357,0.67711252,117790.0,117780.0,0.04468125]
[1753879709602,0.89493982,117790.0,117780.0,0.04468125]
[1753879710235,0.93791284,117790.0,117780.0,0.04468125]
[1753879710652,0.93791284,117790.0,117780.0,0.00992125]
[1753879710891,0.93891284,117790.0,117780.0,0.00992125]
[1753879711100,0.96811284,117790.0,117780.0,0.00992125]
[1753879711584,0.96811284,117790.0,117780.0,0.04249125]
[1753879712442,0.9780667,117790.0,117780.0,0.04249125]
[1753879712665,0.99893994,117790.0,117780.0,0.04249125]
[1753879713086,0.99993994,117790.0,117780.0,0.04249125]
[1753879713535,0.99893994,117790.0,117780.0,0.04249125]
[1753879713966,0.99893994,117790.0,117780.0,0.00992125]
[1753879713967,0.99993994,117790.0,117780.0,0.00992125]
[1753879714179,1.47968724,117790.0,117780.0,0.00992125]
[1753879714393,1.46576799,117790.0,117780.0,0.00992125]
[1753879714608,1.47846763,117790.0,117780.0,0.00992125]
[1753879714817,1.47441763,117790.0,117780.0,0.00992125]
[1753879715909,1.49273442,117790.0,117780.0,0.00992125]
[1753879716359,6.49800442,117790.0,117780.0,0.00992125]
[1753879716989,6.33102556,117790.0,117780.0,0.00992125]
[1753879717236,6.31270877,117790.0,117780.0,0.00992125]
[1753879717458,6.33102156,117790.0,117780.0,0.00992125]
[1753879717678,6.25825312,117790.0,117780.0,0.04249125]
[1753879717903,1.18848316,117790.0,117780.0,0.04767125]
[1753879718129,1.18848316,117790.0,117780.0,0.07477125]
[1753879718130,1.03705037,117790.0,117780.0,0.07477125]
[1753879718378,0.44876171,117790.0,117780.0,0.10457125]
[1753879718646,0.31568171,117790.0,117780.0,0.41631121]
[1753879718891,0.025274,117790.0,117780.0,0.61158987]
[1753879719125,0.020024,117790.0,117780.0,0.62007977]
[1753879719347,0.019024,117790.0,117780.0,0.62007977]
[1753879719570,0.38006631,117810.0,117800.0,0.0565]
[1753879719829,0.42148921,117810.0,117800.0,0.61647095]
[1753879720058,0.29636397,117810.0,117800.0,0.62495977]
[1753879720297,0.27938814,117810.0,117800.0,0.47385271]
[1753879720518,0.26294529,117810.0,117800.0,0.47385271]
[1753879720744,0.26294529,117810.0,117800.0,0.64363199]
[1753879720973,0.27243338,117810.0,117800.0,0.64363199]
[1753879721206,0.27243338,117810.0,117800.0,0.47385271]
[1753879721628,0.27243338,117810.0,117800.0,0.6606097]
[1753879722053,0.09524697,117810.0,117800.0,0.67758704]
[1753879722261,0.08675866,117810.0,117800.0,0.68607513]
[1753879722477,0.10366442,117810.0,117800.0,0.68607513]
[1753879722706,0.06888294,117810.0,117800.0,0.68607513]
[1753879722926,0.04448939,117810.0,117800.0,0.68607513]
[1753879723144,0.07737089,117810.0,117800.0,0.68607513]
[1753879723576,0.07737082,117810.0,117800.0,0.68607513]
[1753879723784,0.07736916,117810.0,117800.0,0.66909822]
[1753879724205,0.06888143,117810.0,117800.0,0.66060955]
[1753879724429,0.07736967,117810.0,117800.0,0.60123547]
[1753879724646,0.08531918,117810.0,117800.0,0.60123547]
[1753879724881,0.08531918,117810.0,117800.0,0.60972407]
[1753879725092,0.06834292,117810.0,117800.0,0.61821252]
[1753879725313,0.08531918,117810.0,117800.0,0.5927468]
[1753879725554,0.05985475,117810.0,117800.0,0.609724]
[1753879725745,0.07683029,117810.0,117800.0,0.61821245]
[1753879726654,0.06834284,117810.0,117800.0,0.61821245]
[1753879727070,0.05985489,117810.0,117800.0,0.61821245]
[1753879727289,0.06834184,117810.0,117800.0,0.61821245]
[1753879727722,0.02585223,117810.0,117800.0,0.61821245]
[1753879727939,0.02638977,117810.0,117800.0,0.61821245]
[1753879728415,0.0263897,117810.0,117800.0,0.61821245]
[1753879729087,0.01048759,117810.0,117800.0,0.59274666]
[1753879729321,0.002,117810.0,117800.0,0.60123518]
[1753879729544,0.002,117810.0,117800.0,0.40598996]
[1753879729761,0.18874113,117810.0,117800.0,0.40598996]
[1753879729983,0.20463681,117810.0,117800.0,0.53894996]
[1753879730202,0.20363681,117810.0,117800.0,0.40598996]
[1753879730458,0.20263681,117810.0,117800.0,0.53894996]
[1753879730678,0.20263681,117810.0,117800.0,0.09525]
[1753879730903,0.21058473,117810.0,117800.0,0.09525]
[1753879731129,0.21654575,117810.0,117800.0,0.09525]
[1753879731805,0.21638016,117810.0,117800.0,0.09525]
[1753879732987,0.21638016,117810.0,117800.0,0.41547892]
[1753879732988,0.01362894,117810.0,117800.0,0.41547892]
[1753879733192,0.01362894,117810.0,117800.0,0.40698996]
[1753879733193,0.18339381,117810.0,117800.0,0.40698996]
[1753879733404,0.19188205,117810.0,117800.0,0.40698996]
[1753879733623,0.20036992,117810.0,117800.0,0.58525813]
[1753879733838,0.20885809,117810.0,117800.0,0.27351824]
[1753879734071,0.20885809,117810.0,117800.0,0.41547892]
[1753879734288,0.20037007,117810.0,117800.0,0.40698996]
[1753879734569,0.20037007,117810.0,117800.0,0.09525]
[1753879734808,0.19188198,117810.0,117800.0,0.09525]
[1753879735049,0.19402198,117810.0,117800.0,0.09007]
[1753879735287,0.19706198,117810.0,117800.0,0.03357]
[1753879735502,0.19706198,117810.0,117800.0,0.06237]
[1753879736181,0.61072826,117810.0,117800.0,0.001]
[1753879736393,0.59709932,117810.0,117800.0,0.001]
[1753879736620,0.59709932,117810.0,117800.0,0.03357]
[1753879736861,0.28535936,117810.0,117800.0,0.03357]
[1753879737082,0.93709932,117810.0,117800.0,0.03357]
[1753879737293,0.93709932,117810.0,117800.0,0.001]
[1753879737730,0.93709932,117810.0,117800.0,0.03483]
[1753879738357,0.93709932,117810.0,117800.0,0.001]
[1753879740338,0.93709932,117810.0,117800.0,0.03483]
[1753879740620,0.93709932,117810.0,117800.0,0.26347928]
[1753879740621,0.45890244,117810.0,117800.0,0.26347928]
[1753879740859,0.3818144,117820.0,117810.0,0.22906487]
[1753879741083,0.69293195,117820.0,117810.0,0.54287483]
[1753879741319,0.52318149,117820.0,117810.0,0.59673124]
[1753879741565,0.69293195,117820.0,117810.0,0.57975483]
[1753879741852,0.69293195,117820.0,117810.0,0.26801487]
[1753879742479,0.69293195,117820.0,117810.0,0.26496487]
[1753879742969,0.69293195,117820.0,117810.0,0.26801487]
[1753879743181,0.69393195,117820.0,117810.0,0.09825]
[1753879743856,0.69393195,117820.0,117810.0,0.26801487]
[1753879744741,0.52418091,117820.0,117810.0,0.28499099]
[1753879744956,0.52418091,117820.0,117810.0,0.28499106]
[1753879745180,0.51569361,117820.0,117810.0,0.28499106]
[1753879745427,0.70241904,117820.0,117810.0,0.27650311]
[1753879745643,0.53266858,117820.0,117810.0,0.29347937]
[1753879745870,0.70241904,117820.0,117810.0,0.27650311]
[1753879746069,0.70241904,117820.0,117810.0,0.28499128]
[1753879746313,0.53266858,117820.0,117810.0,0.28499128]
[1753879746542,0.53266858,117820.0,117810.0,0.29347937]
[1753879746789,0.70241904,117820.0,117810.0,0.27650311]
[1753879747226,0.53266843,117820.0,117810.0,0.29347937]
[1753879747415,0.5156939,117820.0,117810.0,0.3019671]
[1753879747659,0.53366872,117820.0,117810.0,0.28499113]
[1753879747875,0.68644493,117820.0,117810.0,0.26801487]
[1753879748352,0.68644493,117820.0,117810.0,0.27650311]
[1753879748853,0.68644493,117820.0,117810.0,0.26801487]
[1753879749127,0.68644493,117820.0,117810.0,0.09825]
[1753879749374,0.68644493,117820.0,117810.0,0.0952]
[1753879749580,0.51669404,117820.0,117810.0,0.27345304]
[1753879749800,0.52518149,117820.0,117810.0,0.27345304]
[1753879750042,0.52518149,117820.0,117810.0,0.27345311]
[1753879750043,0.69493238,117820.0,117810.0,0.27345311]
[1753879750508,0.68644508,117820.0,117810.0,0.10368824]
[1753879750740,0.69493231,117820.0,117810.0,0.0952]
[1753879750986,0.68644508,117820.0,117810.0,0.09825]
[1753879751676,0.68856508,117820.0,117810.0,0.0952]
[1753879752149,0.69174508,117820.0,117810.0,0.0952]
[1753879752378,0.69174508,117820.0,117810.0,0.09313]
[1753879754707,0.69174508,117820.0,117810.0,0.0952]
[1753879754939,0.68644508,117820.0,117810.0,0.0952]
[1753879755139,0.68644508,117820.0,117810.0,0.09825]
[1753879757794,0.68644508,117820.0,117810.0,0.10673824]
[1753879757943,0.68644508,117820.0,117810.0,0.29347937]
[1753879758185,0.68644508,117820.0,117810.0,0.27650311]
[1753879758384,0.68644508,117820.0,117810.0,0.09825]
[1753879758800,0.68856508,117820.0,117810.0,0.0952]
[1753879760114,0.68856508,117820.0,117810.0,0.27345304]
[1753879760238,0.68644508,117820.0,117810.0,0.27345311]
[1753879760450,0.68644508,117820.0,117810.0,0.27650311]
[1753879761067,0.68644508,117820.0,117810.0,0.26801487]
[1753879761287,0.68644508,117820.0,117810.0,0.09825]
[1753879761962,0.68644508,117820.0,117810.0,0.0952]
[1753879762164,0.68644508,117820.0,117810.0,0.27345311]
[1753879762293,0.68644508,117820.0,117810.0,0.2819412]
[1753879762489,0.51669382,117820.0,117810.0,0.2849912]
[1753879762728,0.71190626,117820.0,117810.0,0.2849912]
[1753879762934,0.57902626,117820.0,117810.0,0.27650311]
[1753879763146,0.555685,117820.0,117810.0,0.0952]
[1753879763367,0.55037763,117820.0,117810.0,0.09313]
[1753879763782,0.68305763,117820.0,117810.0,0.09313]
[1753879764012,0.6989594,117820.0,117810.0,0.09313]
[1753879764224,0.17825304,117810.0,117800.0,0.22571]
[1753879764501,0.18037304,117810.0,117800.0,0.22571]
[1753879764658,0.18037304,117810.0,117800.0,0.40397824]
[1753879764659,0.20052901,117810.0,117800.0,0.40397824]
[1753879764880,0.20052901,117810.0,117800.0,0.41453713]
[1753879765090,0.20052901,117810.0,117800.0,0.41453706]
[1753879765554,0.00848773,117810.0,117800.0,0.43151447]
[1753879765770,0.01697568,117810.0,117800.0,0.440003]
[1753879765979,0.02546377,117810.0,117800.0,0.41453706]
[1753879766196,0.19522864,117810.0,117800.0,0.39755928]
[1753879766410,0.18886091,117810.0,117800.0,0.22778]
[1753879766632,0.02758377,117810.0,117800.0,0.4145367]
[1753879766848,0.0275837,117810.0,117800.0,0.4145367]
[1753879767054,0.01060773,117810.0,117800.0,0.72630111]
[1753879767305,0.02546363,117810.0,117800.0,0.72730111]
[1753879767943,0.03395187,117810.0,117800.0,0.72730125]
[1753879768151,0.0339518,117810.0,117800.0,0.72730125]
[1753879768584,0.02546363,117810.0,117800.0,0.73578985]
[1753879768798,0.69269202,117820.0,117810.0,0.23705311]
[1753879768997,0.71710272,117820.0,117810.0,0.55090752]
[1753879769218,0.71710272,117820.0,117810.0,0.27468311]
[1753879769417,0.71014151,117820.0,117810.0,0.40819441]
[1753879769627,0.71327151,117820.0,117810.0,0.09643]
[1753879770250,0.71427151,117820.0,117810.0,0.09643]
[1753879770446,0.58163151,117820.0,117810.0,0.09643]
[1753879770651,0.58163151,117820.0,117810.0,0.26619487]
[1753879770886,0.57950151,117820.0,117810.0,0.09643]
[1753879771092,0.57101421,117820.0,117810.0,0.09643]
[1753879772366,0.56252867,117820.0,117810.0,0.09643]
[1753879772582,0.55769394,117820.0,117810.0,0.09643]
[1753879773039,0.56565873,117820.0,117810.0,0.09643]
[1753879773519,0.55769394,117820.0,117810.0,0.09643]
[1753879775096,0.39973758,117820.0,117810.0,0.60641378]
[1753879775320,0.39974386,117820.0,117810.0,0.60342378]
[1753879775529,0.39974386,117820.0,117810.0,0.29165937]
[1753879775754,0.40179386,117820.0,117810.0,0.29165937]
[1753879776215,0.39330677,117820.0,117810.0,0.29165937]
[1753879776430,0.40179393,117820.0,117810.0,0.27468311]
[1753879776653,0.38586382,117820.0,117810.0,0.27468311]
[1753879776872,0.40179397,117820.0,117810.0,0.2831712]
[1753879777096,0.39330681,117820.0,117810.0,0.29165937]
[1753879777592,0.40179397,117820.0,117810.0,0.29165937]
[1753879777820,0.40179397,117820.0,117810.0,0.28317128]
[1753879778045,0.39330681,117820.0,117810.0,0.29165937]
[1753879778263,0.40179397,117820.0,117810.0,0.27468311]
[1753879778531,0.39330681,117820.0,117810.0,0.2831712]
[1753879778753,0.37737666,117820.0,117810.0,0.2831712]
[1753879778971,0.37737666,117820.0,117810.0,0.29165922]
[1753879779197,0.02683965,117820.0,117810.0,0.30014688]
[1753879779421,0.002,117820.0,117810.0,0.61490129]
[1753879780366,0.00796455,117830.0,117820.0,0.25551215]
[1753879780597,0.00796455,117830.0,117820.0,0.35990441]
[1753879780835,0.04555556,117850.0,117840.0,0.0603]
[1753879781080,0.49345878,117850.0,117840.0,0.67434606]
[1753879781299,0.48505612,117850.0,117840.0,0.70988606]
[1753879781768,0.51910061,117850.0,117840.0,0.39812165]
[1753879781994,0.68031666,117850.0,117840.0,0.22836]
[1753879782232,0.67183159,117850.0,117840.0,0.22836]
[1753879782717,0.67183159,117850.0,117840.0,0.19676]
[1753879782953,0.67183159,117850.0,117840.0,0.13252]
[1753879783187,0.18669316,117840.0,117830.0,0.09714]
[1753879783424,0.19519566,117830.0,117820.0,0.26948755]
[1753879783671,0.02750896,117830.0,117820.0,0.40000755]
[1753879783935,0.03063903,117830.0,117820.0,0.40000755]
[1753879784160,0.01366615,117830.0,117820.0,0.41698252]
[1753879784372,0.11306445,117840.0,117830.0,0.17822286]
[1753879784590,0.22422893,117840.0,117830.0,0.22913606]
[1753879784807,0.22422893,117840.0,117830.0,0.26467606]
[1753879785240,0.22422893,117840.0,117830.0,0.09494]
[1753879785456,0.21574343,117840.0,117830.0,0.03554]
[1753879785938,0.17822271,117830.0,117820.0,0.09854]
[1753879786181,0.02546126,117820.0,117810.0,0.26750207]
[1753879786416,0.01697403,117820.0,117810.0,0.39998487]
[1753879786653,0.03064119,117820.0,117810.0,0.4169612]
[1753879786892,0.03064119,117820.0,117810.0,0.39998487]
[1753879786893,0.21736633,117820.0,117810.0,0.39998487]
[1753879787127,0.2003923,117820.0,117810.0,0.39998487]
[1753879787634,0.02215439,117820.0,117810.0,0.40847304]
[1753879787869,0.03912921,117820.0,117810.0,0.40847304]
[1753879788125,0.02215439,117820.0,117810.0,0.41147304]
[1753879788355,0.20039215,117820.0,117810.0,0.40298487]
[1753879788564,0.20887967,117820.0,117810.0,0.27050487]
[1753879788792,0.20887967,117820.0,117810.0,0.40298487]
[1753879789419,0.20887967,117820.0,117810.0,0.41147311]
[1753879789633,0.04761658,117820.0,117810.0,0.41996128]
[1753879789852,0.03912906,117820.0,117810.0,0.42844937]
[1753879790118,0.04761658,117820.0,117810.0,0.41996128]
[1753879790785,0.03064169,117820.0,117810.0,0.41996128]
[1753879791010,0.0221541,117820.0,117810.0,0.43693711]
[1753879791229,0.0221541,117820.0,117810.0,0.4305393]
[1753879791459,0.0221541,117820.0,117810.0,0.43902718]
[1753879791682,0.0306414,117820.0,117810.0,0.43902725]
[1753879791902,0.0221541,117820.0,117810.0,0.43902725]
[1753879792121,0.03064133,117820.0,117810.0,0.42505128]
[1753879792346,0.03064133,117820.0,117810.0,0.43353923]
[1753879792619,0.03912863,117820.0,117810.0,0.43353923]
[1753879792817,0.03064133,117820.0,117810.0,0.43353923]
[1753879793025,0.04761615,117820.0,117810.0,0.41656311]
[1753879793269,0.03912863,117820.0,117810.0,0.42505128]
[1753879793472,0.21736661,117820.0,117810.0,0.42292128]
[1753879793699,0.2088796,117820.0,117810.0,0.23618]
[1753879793971,0.02215439,117820.0,117810.0,0.41443304]
[1753879794193,0.0190241,117820.0,117810.0,0.4419866]
[1753879794404,0.0190241,117820.0,117810.0,0.42501106]
[1753879794629,0.0190241,117820.0,117810.0,0.44198675]
[1753879794847,0.0190241,117820.0,117810.0,0.43349894]
[1753879795064,0.0190241,117820.0,117810.0,0.44198667]
[1753879795330,0.02751133,117820.0,117810.0,0.44198675]
[1753879795541,0.02751133,117820.0,117810.0,0.44198674]
[1753879795771,0.03599863,117820.0,117810.0,0.42501106]
[1753879795989,0.01902403,117820.0,117810.0,0.45047448]
[1753879796654,0.01697403,117820.0,117810.0,0.44497674]
[1753879796867,0.18671053,117830.0,117820.0,0.17823776]
[1753879797100,0.01697266,117830.0,117820.0,0.26328967]
[1753879797314,0.00848615,117830.0,117820.0,0.6126435]
[1753879797536,0.01697244,117830.0,117820.0,0.6126435]
[1753879798232,0.36858752,117840.0,117830.0,0.18670929]
[1753879798443,0.55423642,117840.0,117830.0,0.30213606]
[1753879798696,0.38451477,117840.0,117830.0,0.37539286]
[1753879798929,0.38451477,117840.0,117830.0,0.74604665]
[1753879798930,0.36492936,117840.0,117830.0,0.74604665]
[1753879799191,0.00795843,117840.0,117830.0,0.74604665]
[1753879799406,0.39958196,117850.0,117840.0,0.18669359]
[1753879799626,0.48949979,117850.0,117840.0,0.58634214]
[1753879799831,0.48949979,117850.0,117840.0,0.597958]
[1753879800044,0.48353158,117850.0,117840.0,0.28619359]
[1753879800311,0.66172419,117850.0,117840.0,0.0995]
[1753879800545,0.96149882,117850.0,117840.0,0.1324]
[1753879800780,0.17820758,117840.0,117830.0,0.03446]
[1753879801055,0.17822271,117830.0,117820.0,0.03446]
[1753879801292,0.02546126,117820.0,117810.0,0.27950091]
[1753879801514,0.03594878,117820.0,117810.0,0.41387098]
[1753879801764,0.02746176,117820.0,117810.0,0.41387084]
[1753879801995,0.01697439,117820.0,117810.0,0.42235879]
[1753879802243,0.02546119,117820.0,117810.0,0.43397652]
[1753879802717,0.04546409,117830.0,117820.0,0.17823783]
[1753879802954,0.06443704,117830.0,117820.0,0.24440798]
[1753879803189,0.05297024,117830.0,117820.0,0.4317296]
[1753879803433,0.05297031,117830.0,117820.0,0.41475535]
[1753879803619,0.06145711,117830.0,117820.0,0.41675535]
[1753879803769,0.04448366,117830.0,117820.0,0.42524265]
[1753879804014,0.04448366,117830.0,117820.0,0.23003]
[1753879804364,0.04448366,117830.0,117820.0,0.41675528]
[1753879804620,0.04448366,117830.0,117820.0,0.28639528]
[1753879804856,0.22270674,117830.0,117820.0,0.41026798]
[1753879805113,0.22270674,117830.0,117820.0,0.24051752]
[1753879805330,0.2142203,117830.0,117820.0,0.23203]
[1753879805565,0.20573379,117830.0,117820.0,0.23203]
[1753879805802,0.20573379,117830.0,117820.0,0.09967]
[1753879805803,0.23388949,117830.0,117820.0,0.09967]
[1753879806025,0.23388949,117830.0,117820.0,0.23203]
[1753879807145,0.23388949,117830.0,117820.0,0.09967]
[1753879807370,0.23388949,117830.0,117820.0,0.23199]
[1753879808733,0.23388949,117830.0,117820.0,0.09967]
[1753879808952,0.22540276,117830.0,117820.0,0.23199]
[1753879810106,0.22540276,117830.0,117820.0,0.24047752]
[1753879810568,0.22540276,117830.0,117820.0,0.23199]
[1753879810837,0.22540276,117830.0,117820.0,0.24047752]
[1753879811046,0.22540276,117830.0,117820.0,0.41022798]
[1753879811269,0.25086265,117830.0,117820.0,0.42720273]
[1753879811702,0.25086265,117830.0,117820.0,0.4272028]
[1753879811923,0.24237621,117830.0,117820.0,0.23195]
[1753879812402,0.23388956,117830.0,117820.0,0.23195]
[1753879812838,0.23388956,117830.0,117820.0,0.20245]
[1753879814424,0.23388956,117830.0,117820.0,0.004]
[1753879814640,0.29568956,117830.0,117820.0,0.13628]
[1753879815136,0.54565397,117830.0,117820.0,0.03846]
[1753879815368,0.61287397,117830.0,117820.0,0.004]
[1753879815592,0.60775397,117830.0,117820.0,0.13628]
[1753879816271,0.54565397,117830.0,117820.0,0.13628]
[1753879816512,0.54565397,117830.0,117820.0,0.17074]
[1753879816798,0.23388956,117830.0,117820.0,0.03846]
[1753879817023,0.57655397,117830.0,117820.0,0.13628]
[1753879817536,0.54565397,117830.0,117820.0,0.13628]
[1753879817772,0.54565397,117830.0,117820.0,0.004]
[1753879817908,0.54565397,117830.0,117820.0,0.1707]
[1753879818136,0.23388956,117830.0,117820.0,0.1707]
[1753879820515,0.71211029,117830.0,117820.0,0.13624]
[1753879820756,0.33581588,117830.0,117820.0,0.1707]
[1753879820987,0.37163614,117830.0,117820.0,0.23892046]
[1753879821197,0.57739614,117830.0,117820.0,0.41206441]
[1753879821425,0.57739614,117830.0,117820.0,0.27653791]
[1753879821868,0.57739614,117830.0,117820.0,0.58081487]
[1753879822075,0.57739614,117830.0,117820.0,0.58930239]
[1753879822295,0.57739614,117830.0,117820.0,0.59778984]
[1753879822527,0.57739614,117830.0,117820.0,0.0993]
[1753879823030,0.57739614,117830.0,117820.0,0.09617]
[1753879823458,0.57739614,117830.0,117820.0,0.28289528]
[1753879823901,0.57739614,117830.0,117820.0,0.27440798]
[1753879824139,0.57739614,117830.0,117820.0,0.29138265]
[1753879824353,0.41614638,117830.0,117820.0,0.60627706]
[1753879824575,0.41614638,117830.0,117820.0,0.61476429]
[1753879824790,0.58588244,117830.0,117820.0,0.40793441]
[1753879825003,0.58588244,117830.0,117820.0,0.09617]
[1753879825277,0.57739607,117830.0,117820.0,0.09617]
[1753879825451,0.57739607,117830.0,117820.0,0.27440791]
[1753879825663,0.57739607,117830.0,117820.0,0.10465752]
[1753879825891,0.57090949,117830.0,117820.0,0.09617]
[1753879826098,0.57388949,117830.0,117820.0,0.09617]
[1753879827856,0.57388949,117830.0,117820.0,0.10465752]
[1753879828508,0.57388949,117830.0,117820.0,0.09617]
[1753879830198,0.57388949,117830.0,117820.0,0.03546]
[1753879830458,0.8856539,117830.0,117820.0,0.03546]
[1753879830691,1.05219022,117830.0,117820.0,0.001]
[1753879830910,0.98758022,117830.0,117820.0,0.001]
[1753879831533,0.98758022,117830.0,117820.0,0.03341]
[1753879831759,0.67581581,117830.0,117820.0,0.26583046]
[1753879831988,0.53981994,117830.0,117820.0,0.28589535]
[1753879832195,0.709556,117830.0,117820.0,0.28280543]
[1753879832416,0.711636,117830.0,117820.0,0.28280543]
[1753879832616,0.711636,117830.0,117820.0,0.27431798]
[1753879833364,0.711636,117830.0,117820.0,0.28280543]
[1753879833542,0.711636,117830.0,117820.0,0.27431798]
[1753879833971,0.579476,117830.0,117820.0,0.27431798]
[1753879834409,0.579476,117830.0,117820.0,0.28280543]
[1753879834627,0.582706,117830.0,117820.0,0.09411]
[1753879834838,0.57421949,117830.0,117820.0,0.09411]
[1753879835051,0.57421949,117830.0,117820.0,0.03341]
[1753879835480,0.8859839,117830.0,117820.0,0.03341]
[1753879835703,0.98791022,117830.0,117820.0,0.13316]
[1753879836577,0.67614581,117830.0,117820.0,0.13316]
[1753879836775,0.98791022,117830.0,117820.0,0.13316]
[1753879836975,0.98791022,117830.0,117820.0,0.16557]
[1753879837743,0.98791022,117830.0,117820.0,0.03341]
[1753879838328,1.05512022,117830.0,117820.0,0.001]
[1753879838537,1.18724022,117830.0,117820.0,0.001]
[1753879838954,1.211134,117830.0,117820.0,0.001]
[1753879839597,1.2111344,117830.0,117820.0,0.001]
[1753879839821,1.21710833,117830.0,117820.0,0.001]
[1753879840042,1.21710832,117830.0,117820.0,0.001]
[1753879840266,1.20914373,117830.0,117820.0,0.001]
[1753879840486,1.21113386,117830.0,117820.0,0.001]
[1753879841208,1.21113308,117830.0,117820.0,0.001]
[1753879841444,1.21213308,117830.0,117820.0,0.001]
[1753879842817,0.18674084,117810.0,117800.0,0.03241]
[1753879843042,0.32094084,117810.0,117800.0,0.06298]
[1753879843475,0.34645584,117810.0,117800.0,0.06298]
[1753879843901,0.34645584,117810.0,117800.0,0.09168]
[1753879844111,0.34645584,117810.0,117800.0,0.09368]
[1753879844330,0.34119796,117810.0,117800.0,0.09171]
[1753879845181,0.34119796,117810.0,117800.0,0.03441]
[1753879845604,0.34119796,117810.0,117800.0,0.03641]
[1753879845870,1.12368869,117810.0,117800.0,0.004]
[1753879846080,1.09488869,117810.0,117800.0,0.03641]
[1753879848631,1.07743967,117810.0,117800.0,0.03641]
[1753879853158,1.14334967,117810.0,117800.0,0.004]
[1753879853378,0.96509671,117810.0,117800.0,0.004]
[1753879853635,1.13486158,117810.0,117800.0,0.004]
[1753879853858,1.14334967,117810.0,117800.0,0.004]
[1753879854071,1.14334967,117810.0,117800.0,0.03641]
[1753879854072,0.76567526,117810.0,117800.0,0.03641]
[1753879854299,1.07743967,117810.0,117800.0,0.03641]
[1753879854508,1.07743967,117810.0,117800.0,0.03441]